[Event "NOR-ch Clubs 2017"]
[Site "Kristiansund"]
[Date "2017.10.22"]
[Round "6"]
[White "Hagen, Brede Andre Larsen"]
[Black "Barna, Andre"]
[Result "1/2-1/2"]
[ECO "B06"]
[WhiteElo "2069"]
[BlackElo "2148"]
[Annotator "NA"]
[PlyCount "24"]
[EventDate "2017.??.??"]
[EventType "team-tourn"]
[EventCountry "NOR"]
[SourceTitle "playchess.com"]
[Source "ChessBase"]
[SourceQuality "1"]
[TimeControl "40/5400:1800"]

1. e4 {[%emt 0:00:05]} g6 {[%emt 0:02:29]} 2. Nc3 {[%emt 0:01:31]} Bg7 {[%emt 0:00:11]} 3. d4 {[%emt 0:00:32]} d5 {[%emt 0:00:15]} 4. exd5 {[%emt 0:04:40]} c6 {[%emt 0:00:05]} 5. dxc6 {[%emt 0:05:15]} Bxd4 {[%emt 0:00:06]} 6. Nge2 {[%emt 0:08:47]} Bxc3+ {[%emt 0:00:16]} 7. Nxc3 {[%emt 0:02:38]} Qxd1+ {[%emt 0:00:02]} 8. Nxd1 {[%emt 0:03:21]} Nxc6 {[%emt 0:00:02]} 9. Ne3 {[%emt 0:02:40]} Be6 {[%emt 0:01:07]} 10. Bd2 {[%emt 0:04:33]} O-O-O {[%emt 0:00:36]} 11. O-O-O {[%emt 0:02:49]} Nh6 {[%emt 0:01:00]} 12. Bd3 {[%emt 0:09:29]} Ne5 {[%emt 0:03:24]} 1/2-1/2

[Event "NOR-ch Clubs 2017"]
[Site "Kristiansund"]
[Date "2017.10.22"]
[Round "6"]
[White "Dahl, Torbjorn"]
[Black "Kaasen, Tor Fredrik"]
[Result "0-1"]
[ECO "B22"]
[WhiteElo "1974"]
[BlackElo "2371"]
[Annotator "NA"]
[PlyCount "54"]
[EventDate "2017.??.??"]
[EventType "team-tourn"]
[EventCountry "NOR"]
[SourceTitle "playchess.com"]
[Source "ChessBase"]
[SourceQuality "1"]
[TimeControl "40/5400:1800"]

1. e4 {[%emt 0:00:10]} c5 {[%emt 0:00:14]} 2. c3 {[%emt 0:00:07]} Nf6 {[%emt 0:02:21]} 3. d3 {[%emt 0:00:11]} Nc6 {[%emt 0:00:29]} 4. Nf3 {[%emt 0:01:20]} e5 {[%emt 0:00:46]} 5. Be2 {[%emt 0:03:56]} Be7 {[%emt 0:00:49]} 6. O-O {[%emt 0:00:38]} d5 {[%emt 0:01:06]} 7. exd5 {[%emt 0:00:40]} Qxd5 {[%emt 0:02:05]} 8. Nbd2 {[%emt 0:18:45]} O-O {[%emt 0:02:09]} 9. Re1 {[%emt 0:15:01]} Re8 {[%emt 0:08:59]} 10. d4 {[%emt 0:03:23]} exd4 {[%emt 0:12:07]} 11. Bc4 {[%emt 0:03:08]} Qh5 {[%emt 0:01:14]} 12. cxd4 {[%emt 0:06:25]} cxd4 {[%emt 0:01:25]} 13. Ne4 {[%emt 0:08:37]} Nxe4 {[%emt 0:02:32]} 14. Rxe4 {[%emt 0:03:58]} Bg4 {[%emt 0:03:50]} 15. Qb3 {[%emt 0:12:45]} Bxf3 {[%emt 0:01:57]} 16. gxf3 {[%emt 0:03:15]} Bd6 {[%emt 0:00:51]} 17. Bd2 {[%emt 0:01:34]} Qxh2+ {[%emt 0:00:19]} 18. Kf1 {[%emt 0:00:07]} Qh1+ {[%emt 0:00:42]} 19. Ke2 {[%emt 0:00:07]} Rxe4+ {[%emt 0:00:07]} 20. fxe4 {[%emt 0:00:26]} Qxe4+ {[%emt 0:02:15]} 21. Kd1 {[%emt 0:01:48]} Ne5 {[%emt 0:00:53]} 22. Bd5 {[%emt 0:00:29]} Qg4+ {[%emt 0:00:05]} 23. f3 {[%emt 0:00:21]} Qg1+ {[%emt 0:00:09]} 24. Be1 {[%emt 0:00:17]} Re8 {[%emt 0:01:20]} 25. Rc1 {[%emt 0:00:59]} d3 {[%emt 0:01:37]} 26. Qxb7 {[%emt 0:00:44]} Qg2 {[%emt 0:01:13]} 27. Rc8 {[%emt 0:00:26]} Qe2+ {[%emt 0:00:06]} 0-1

[Event "NOR-ch Clubs 2017"]
[Site "Kristiansund"]
[Date "2017.10.22"]
[Round "6"]
[White "Simensen, Vegard"]
[Black "Ranaldi, Lucas"]
[Result "0-1"]
[ECO "A47"]
[WhiteElo "1969"]
[BlackElo "2267"]
[Annotator "NA"]
[PlyCount "88"]
[EventDate "2017.??.??"]
[EventType "team-tourn"]
[EventCountry "NOR"]
[SourceTitle "playchess.com"]
[Source "ChessBase"]
[SourceQuality "1"]
[TimeControl "40/5400:1800"]

1. d4 {[%emt 0:00:10]} Nf6 {[%emt 0:00:40]} 2. Nf3 {[%emt 0:00:37]} b6 {[%emt 0:01:47]} 3. g3 {[%emt 0:03:01]} Bb7 {[%emt 0:00:12]} 4. Bg2 {[%emt 0:00:34]} c5 {[%emt 0:01:22]} 5. O-O {[%emt 0:05:17]} g6 {[%emt 0:00:57]} 6. c4 {[%emt 0:04:02]} cxd4 {[%emt 0:01:49]} 7. Nxd4 {[%emt 0:01:33]} Bxg2 {[%emt 0:04:37]} 8. Kxg2 {[%emt 0:00:25]} Bg7 {[%emt 0:04:40]} 9. Nc3 {[%emt 0:05:02]} O-O {[%emt 0:02:29]} 10. e4 {[%emt 0:04:54]} Nc6 {[%emt 0:04:09]} 11. Nxc6 {[%emt 0:05:12]} dxc6 {[%emt 0:00:01]} 12. Qe2 {[%emt 0:04:57]} Nd7 {[%emt 0:02:23]} 13. Rd1 {[%emt 0:04:06]} Bxc3 {[%emt 0:15:55]} 14. bxc3 {[%emt 0:00:29]} Qc7 {[%emt 0:07:29]} 15. Bf4 {[%emt 0:07:05]} e5 {[%emt 0:01:55]} 16. Bh6 {[%emt 0:02:19]} Rfd8 {[%emt 0:01:47]} 17. Bg5 {[%emt 0:02:44]} f6 {[%emt 0:00:48]} 18. Be3 {[%emt 0:01:33]} Nf8 {[%emt 0:12:21]} 19. h4 {[%emt 0:09:14]} Rxd1 {[%emt 0:01:30]} 20. Rxd1 {[%emt 0:00:36]} Rd8 {[%emt 0:00:19]} 21. c5 {[%emt 0:03:44]} b5 {[%emt 0:04:49]} 22. Qc2 {[%emt 0:04:45]} Rxd1 {[%emt 0:00:38]} 23. Qxd1 {[%emt 0:00:17]} Qd7 {[%emt 0:00:36]} 24. Qb3+ {[%emt 0:03:34]} Qf7 {[%emt 0:01:39]} 25. Qa3 {[%emt 0:00:49]} f5 {[%emt 0:01:30]} 26. Qa6 {[%emt 0:02:27]} Qd7 {[%emt 0:03:42]} 27. exf5 {[%emt 0:02:56]} gxf5 {[%emt 0:00:33]} 28. Qa3 {[%emt 0:02:16]} Ne6 {[%emt 0:02:22]} 29. Kh2 {[%emt 0:02:16]} f4 {[%emt 0:03:07]} 30. gxf4 {[%emt 0:00:21]} exf4 {[%emt 0:00:01]} 31. Bd4 {[%emt 0:00:56]} Nxd4 {[%emt 0:01:01]} 32. cxd4 {[%emt 0:00:10]} Qxd4 {[%emt 0:00:20]} 33. Qxa7 {[%emt 0:00:45]} Qxf2+ {[%emt 0:00:01]} 34. Kh1 {[%emt 0:00:07]} Qxh4+ {[%emt 0:00:13]} 35. Kg2 {[%emt 0:00:16]} Qg3+ {[%emt 0:00:05]} 36. Kf1 {[%emt 0:00:14]} Qf3+ {[%emt 0:01:14]} 37. Kg1 {[%emt 0:00:08]} h5 {[%emt 0:00:38]} 38. Qb8+ {[%emt 0:00:04]} Kf7 {[%emt 0:00:03]} 39. Qc7+ {[%emt 0:00:02]} Kf6 {[%emt 0:00:08]} 40. Qd6+ {[%emt 0:00:02]} Kf5 {[%emt 0:30:05]} 41. Qd7+ {[%emt 0:30:00]} Kg5 {[%emt 0:00:04]} 42. Qe7+ {[%emt 0:00:00]} Kg4 {[%emt 0:00:00]} 43. Qe6+ {[%emt 0:00:00]} Kg3 {[%emt 0:00:00]} 44. Qg6+ {[%emt 0:00:00]} Kh3 {[%emt 0:00:00]} 0-1

[Event "NOR-ch Clubs 2017"]
[Site "Kristiansund"]
[Date "2017.10.22"]
[Round "6"]
[White "Dronen, Ole Reza"]
[Black "Lillelokken, Kjell A"]
[Result "1-0"]
[ECO "A03"]
[WhiteElo "1797"]
[BlackElo "2128"]
[Annotator "NA"]
[PlyCount "65"]
[EventDate "2017.??.??"]
[EventType "team-tourn"]
[EventCountry "NOR"]
[SourceTitle "playchess.com"]
[Source "ChessBase"]
[SourceQuality "1"]
[TimeControl "40/5400:1800"]

1. f4 {[%emt 0:03:49]} d5 {[%emt 0:01:16]} 2. Nf3 {[%emt 0:00:05]} g6 {[%emt 0:00:24]} 3. e3 {[%emt 0:00:14]} Bg7 {[%emt 0:00:11]} 4. Be2 {[%emt 0:00:06]} f5 {[%emt 0:02:24]} 5. O-O {[%emt 0:04:17]} Nf6 {[%emt 0:00:59]} 6. c4 {[%emt 0:02:43]} e6 {[%emt 0:00:06]} 7. Nc3 {[%emt 0:02:31]} O-O {[%emt 0:00:27]} 8. d4 {[%emt 0:08:53]} c6 {[%emt 0:02:20]} 9. c5 {[%emt 0:00:32]} b6 {[%emt 0:00:41]} 10. b4 {[%emt 0:02:43]} a5 {[%emt 0:00:32]} 11. Na4 {[%emt 0:04:56]} bxc5 {[%emt 0:08:59]} 12. bxc5 {[%emt 0:00:28]} Nbd7 {[%emt 0:02:37]} 13. Rb1 {[%emt 0:04:46]} Ne4 {[%emt 0:02:12]} 14. Bd2 {[%emt 0:03:54]} h6 {[%emt 0:07:42]} 15. Qe1 {[%emt 0:05:45]} Nxd2 {[%emt 0:06:49]} 16. Qxd2 {[%emt 0:00:54]} g5 {[%emt 0:00:52]} 17. Nb6 {[%emt 0:01:25]} Ra7 {[%emt 0:02:11]} 18. fxg5 {[%emt 0:00:49]} hxg5 {[%emt 0:00:43]} 19. Nxc8 {[%emt 0:00:20]} Qxc8 {[%emt 0:00:11]} 20. Nxg5 {[%emt 0:00:22]} Qe8 {[%emt 0:02:13]} 21. Rf3 {[%emt 0:03:55]} Qe7 {[%emt 0:05:28]} 22. Rg3 {[%emt 0:00:53]} e5 {[%emt 0:00:24]} 23. Rf1 {[%emt 0:02:51]} f4 {[%emt 0:01:52]} 24. exf4 {[%emt 0:05:53]} exd4 {[%emt 0:00:40]} 25. Qd3 {[%emt 0:01:20]} Rf6 {[%emt 0:06:45]} 26. Qh7+ {[%emt 0:02:20]} Kf8 {[%emt 0:00:08]} 27. Bg4 {[%emt 0:05:51]} Nxc5 {[%emt 0:05:12]} 28. Qh3 {[%emt 0:09:02]} Rh6 {[%emt 0:02:40]} 29. Bh5 {[%emt 0:03:52]} Ra8 {[%emt 0:05:23]} 30. Qf5+ {[%emt 0:01:25]} Kg8 {[%emt 0:00:58]} 31. Bf7+ {[%emt 0:00:27]} Kh8 {[%emt 0:00:22]} 32. Rh3 {[%emt 0:00:26]} Qd6 {[%emt 0:03:05]} 33. Qh7+ 1-0

[Event "NOR-ch Clubs 2017"]
[Site "Kristiansund"]
[Date "2017.10.22"]
[Round "6"]
[White "Unhjem, Bjorn Robert Lovoll"]
[Black "Schouten, Mathias Lind"]
[Result "1-0"]
[ECO "C63"]
[WhiteElo "1726"]
[BlackElo "1750"]
[Annotator "NA"]
[PlyCount "131"]
[EventDate "2017.??.??"]
[EventType "team-tourn"]
[EventCountry "NOR"]
[SourceTitle "playchess.com"]
[Source "ChessBase"]
[SourceQuality "1"]
[TimeControl "40/5400:1800"]

1. e4 {[%emt 0:00:25]} e5 {[%emt 0:00:04]} 2. Nf3 {[%emt 0:00:07]} Nc6 {[%emt 0:00:05]} 3. Bb5 {[%emt 0:00:13]} f5 {[%emt 0:00:06]} 4. d4 {[%emt 0:11:32]} exd4 {[%emt 0:02:13]} 5. exf5 {[%emt 0:01:32]} Nf6 {[%emt 0:02:52]} 6. O-O {[%emt 0:00:21]} Be7 {[%emt 0:00:50]} 7. Bxc6 {[%emt 0:01:27]} dxc6 {[%emt 0:00:10]} 8. Nxd4 {[%emt 0:00:12]} c5 {[%emt 0:04:33]} 9. Ne6 {[%emt 0:00:25]} Qxd1 {[%emt 0:00:29]} 10. Rxd1 {[%emt 0:00:17]} Bxe6 {[%emt 0:00:08]} 11. fxe6 {[%emt 0:00:06]} Rd8 {[%emt 0:01:03]} 12. Re1 {[%emt 0:01:22]} Bd6 {[%emt 0:09:11]} 13. Nc3 {[%emt 0:00:45]} Rf8 {[%emt 0:00:49]} 14. Bg5 {[%emt 0:03:21]} h6 {[%emt 0:00:35]} 15. Bxf6 {[%emt 0:00:43]} Rxf6 {[%emt 0:00:09]} 16. g3 {[%emt 0:01:33]} c6 {[%emt 0:00:59]} 17. Re2 {[%emt 0:00:18]} Ke7 {[%emt 0:04:09]} 18. Rae1 {[%emt 0:00:37]} Rdf8 {[%emt 0:01:30]} 19. Ne4 {[%emt 0:06:44]} Rxe6 {[%emt 0:00:16]} 20. Nxc5 {[%emt 0:00:06]} Rxe2 {[%emt 0:01:05]} 21. Rxe2+ {[%emt 0:00:06]} Kf7 {[%emt 0:00:33]} 22. Nxb7 {[%emt 0:00:58]} Be7 {[%emt 0:00:34]} 23. Na5 {[%emt 0:00:47]} c5 {[%emt 0:00:17]} 24. Nc6 {[%emt 0:00:19]} Bf6 {[%emt 0:00:06]} 25. c3 {[%emt 0:01:11]} Rc8 {[%emt 0:00:46]} 26. Ne5+ {[%emt 0:01:00]} Kg8 {[%emt 0:00:43]} 27. Nd7 {[%emt 0:00:43]} Bg5 {[%emt 0:01:31]} 28. h4 {[%emt 0:00:36]} Bd8 {[%emt 0:00:04]} 29. Nxc5 {[%emt 0:01:30]} Bxh4 {[%emt 0:00:07]} 30. Nb7 {[%emt 0:02:18]} Bf6 {[%emt 0:00:17]} 31. Nd6 {[%emt 0:01:14]} Rc6 {[%emt 0:00:18]} 32. Re8+ {[%emt 0:01:13]} Kh7 {[%emt 0:00:25]} 33. Ne4 {[%emt 0:00:08]} Kg6 {[%emt 0:01:37]} 34. Nxf6 {[%emt 0:00:19]} Kxf6 {[%emt 0:00:12]} 35. Kf1 {[%emt 0:00:50]} Rb6 {[%emt 0:00:21]} 36. Re2 {[%emt 0:01:04]} g5 {[%emt 0:00:30]} 37. g4 {[%emt 0:00:50]} Kg6 {[%emt 0:00:20]} 38. Ke1 {[%emt 0:00:17]} h5 {[%emt 0:00:04]} 39. gxh5+ {[%emt 0:00:05]} Kxh5 {[%emt 0:00:08]} 40. b3 {[%emt 0:00:34]} Kg4 {[%emt 0:30:36]} 41. Re3 {[%emt 0:30:44]} Kf4 {[%emt 0:00:24]} 42. Kd2 {[%emt 0:00:24]} g4 {[%emt 0:00:19]} 43. c4 {[%emt 0:00:40]} Rd6+ {[%emt 0:00:39]} 44. Ke2 {[%emt 0:00:53]} Ra6 {[%emt 0:00:39]} 45. a4 {[%emt 0:00:08]} Rc6 {[%emt 0:00:07]} 46. Kd2 {[%emt 0:05:01]} a5 {[%emt 0:00:46]} 47. Kc3 {[%emt 0:02:46]} Rf6 {[%emt 0:01:30]} 48. Kd4 {[%emt 0:04:05]} Rd6+ {[%emt 0:01:03]} 49. Kc3 {[%emt 0:04:54]} Rf6 {[%emt 0:00:08]} 50. c5 {[%emt 0:00:22]} Kg5 {[%emt 0:01:28]} 51. Re2 {[%emt 0:00:40]} Rf4 {[%emt 0:02:49]} 52. c6 {[%emt 0:01:02]} Rf6 {[%emt 0:00:06]} 53. Re5+ {[%emt 0:00:05]} Kh4 {[%emt 0:00:17]} 54. Rc5 {[%emt 0:00:24]} Rxf2 {[%emt 0:00:06]} 55. c7 {[%emt 0:00:08]} Kh3 {[%emt 0:00:10]} 56. c8=Q {[%emt 0:00:10]} Rg2 {[%emt 0:00:46]} 57. Rh5+ {[%emt 0:01:42]} Kg3 {[%emt 0:00:07]} 58. Qc7+ {[%emt 0:00:20]} Kf2 {[%emt 0:00:12]} 59. Qf4+ {[%emt 0:00:17]} Kg1 {[%emt 0:00:14]} 60. Rd5 {[%emt 0:00:24]} Kh1 {[%emt 0:00:13]} 61. Rd1+ {[%emt 0:00:26]} Rg1 {[%emt 0:00:30]} 62. Qh6+ {[%emt 0:00:47]} Kg2 {[%emt 0:00:09]} 63. Rd2+ {[%emt 0:00:07]} Kf3 {[%emt 0:00:19]} 64. Qf6+ {[%emt 0:00:33]} Kg3 {[%emt 0:00:12]} 65. Qf2+ {[%emt 0:00:09]} Kh3 {[%emt 0:00:05]} 66. Qh2# {[%emt 0:00:05]} 1-0

[Event "NOR-ch Clubs 2017"]
[Site "Kristiansund"]
[Date "2017.10.22"]
[Round "6"]
[White "Skog, Jan Erik"]
[Black "Holmen, Ove Reidar"]
[Result "0-1"]
[ECO "A49"]
[WhiteElo "1624"]
[BlackElo "1853"]
[Annotator "NA"]
[PlyCount "42"]
[EventDate "2017.??.??"]
[EventType "team-tourn"]
[EventCountry "NOR"]
[SourceTitle "playchess.com"]
[Source "ChessBase"]
[SourceQuality "1"]
[TimeControl "40/5400:1800"]

1. Nf3 {[%emt 0:00:03]} Nf6 {[%emt 0:03:59]} 2. d4 {[%emt 0:00:09]} g6 {[%emt 0:00:09]} 3. g3 {[%emt 0:00:18]} Bg7 {[%emt 0:00:10]} 4. Bg2 {[%emt 0:00:34]} O-O {[%emt 0:00:07]} 5. O-O {[%emt 0:00:05]} d6 {[%emt 0:01:46]} 6. Bf4 {[%emt 0:02:35]} Nbd7 {[%emt 0:01:48]} 7. Nbd2 {[%emt 0:03:19]} c5 {[%emt 0:04:22]} 8. c3 {[%emt 0:01:25]} Nd5 {[%emt 0:06:42]} 9. Bg5 {[%emt 0:03:43]} h6 {[%emt 0:00:46]} 10. e4 {[%emt 0:00:08]} hxg5 {[%emt 0:00:48]} 11. exd5 {[%emt 0:00:15]} g4 {[%emt 0:00:41]} 12. Ng5 {[%emt 0:04:31]} Nf6 {[%emt 0:15:04]} 13. dxc5 {[%emt 0:08:18]} dxc5 {[%emt 0:00:29]} 14. Nc4 {[%emt 0:05:19]} Rb8 {[%emt 0:04:35]} 15. d6 {[%emt 0:04:34]} e6 {[%emt 0:15:48]} 16. Ne4 {[%emt 0:10:32]} Nxe4 {[%emt 0:02:06]} 17. Bxe4 {[%emt 0:00:06]} f5 {[%emt 0:00:16]} 18. Bc2 {[%emt 0:01:07]} b5 {[%emt 0:00:11]} 19. Ne3 {[%emt 0:02:36]} Rb6 {[%emt 0:03:34]} 20. Ng2 {[%emt 0:02:18]} Rxd6 {[%emt 0:00:16]} 21. Qe2 {[%emt 0:00:24]} Rd2 {[%emt 0:00:48]} 0-1